fUSD/lending_fUSD_20250205
["ID","MTS","AMOUNT","RATE_DAILY","PERIOD"]
[351713820,1738761068216,-1108.0,9.789e-05,2]
[351713821,1738761068226,-733.06212154,9.85e-05,2]
[351713822,1738761068236,-204.68,9.888e-05,2]
[351713823,1738761068246,-500.0,9.888e-05,2]
[351713824,1738761068256,-500.0,9.888e-05,2]
[351713825,1738761068266,-443.2,9.888e-05,2]
[351713826,1738761068275,-500.0,9.888e-05,2]
[351713827,1738761068286,-500.0,9.888e-05,2]
[351713828,1738761068295,-507.11,9.888e-05,2]
[351713829,1738761068305,-500.0,9.888e-05,2]
[351713830,1738761068315,-500.0,9.888e-05,2]
[351713831,1738761068325,-500.0,9.888e-05,2]
[351713832,1738761068335,-223.56,9.888e-05,2]
[351713833,1738761068344,-500.0,9.888e-05,2]
[351713834,1738761068354,-500.0,9.888e-05,2]
[351713835,1738761068363,-500.0,9.888e-05,2]
[351713836,1738761068373,-657.62,9.888e-05,2]
[351713837,1738761068383,-500.0,9.888e-05,2]
[351713838,1738761068392,-500.0,9.888e-05,2]
[351713839,1738761068401,-503.31,9.888e-05,2]
[351713840,1738761068410,-500.0,9.888e-05,2]
[351713841,1738761068420,-500.0,9.888e-05,2]
[351713842,1738761068430,-343.05651955,9.888e-05,2]
[351713843,1738761068440,-500.0,9.888e-05,2]
[351713844,1738761068449,-500.0,9.888e-05,2]
[351713845,1738761068459,-669.99,9.888e-05,2]
[351713846,1738761068469,-500.0,9.888e-05,2]
[351713847,1738761068478,-500.0,9.888e-05,2]
[351713848,1738761068487,-666.82,9.888e-05,2]
[351713849,1738761068497,-936.15,9.888e-05,2]
[351713850,1738761068507,-500.0,9.888e-05,2]
[351713851,1738761068517,-500.0,9.888e-05,2]
[351713852,1738761068527,-500.0,9.888e-05,2]
[351713853,1738761068536,-691.79,9.888e-05,2]
[351713854,1738761068545,-500.0,9.888e-05,2]
[351713855,1738761068554,-500.0,9.888e-05,2]
[351713856,1738761068563,-500.0,9.888e-05,2]
[351713857,1738761068573,-500.0,9.888e-05,2]
[351713858,1738761068582,-500.0,9.888e-05,2]
[351713859,1738761068592,-500.0,9.888e-05,2]
[351713860,1738761068601,-500.0,9.888e-05,2]
[351713861,1738761068757,-500.0,9.888e-05,2]
[351713862,1738761068767,-500.0,9.888e-05,2]
[351713863,1738761068777,-500.0,9.888e-05,2]
[351713864,1738761068786,-663.97,9.888e-05,2]
[351713865,1738761068795,-500.0,9.888e-05,2]
[351713866,1738761068805,-500.0,9.888e-05,2]
[351713867,1738761068814,-548.88,9.888e-05,2]
[351713868,1738761068823,-158.0,9.888e-05,2]
[351713869,1738761068833,-500.0,9.888e-05,2]
[351713870,1738761068842,-500.0,9.888e-05,2]
[351713871,1738761068851,-500.0,9.888e-05,2]
[351713872,1738761068862,-500.0,9.888e-05,2]
[351713873,1738761068872,-693.44,9.888e-05,2]
[351713874,1738761068882,-623.0,9.888e-05,2]
[351713875,1738761068893,-500.0,9.888e-05,2]
[351713876,1738761068902,-500.0,9.888e-05,2]
[351713877,1738761068913,-613.86,9.888e-05,2]
[351713878,1738761068922,-500.0,9.888e-05,2]
[351713879,1738761068932,-500.0,9.888e-05,2]
[351713880,1738761068942,-500.0,9.888e-05,2]
[351713881,1738761068952,-500.0,9.888e-05,2]
[351713882,1738761068961,-500.0,9.888e-05,2]
[351713883,1738761068971,-500.0,9.888e-05,2]
[351713884,1738761068983,-501.3,9.888e-05,2]
[351713885,1738761068994,-500.0,9.888e-05,2]
[351713886,1738761069003,-500.0,9.888e-05,2]
[351713887,1738761069013,-500.0,9.888e-05,2]
[351713888,1738761069023,-500.0,9.888e-05,2]
[351713889,1738761069033,-500.0,9.888e-05,2]
[351713890,1738761069043,-500.0,9.888e-05,2]
[351713891,1738761069053,-500.0,9.888e-05,2]
[351713892,1738761069063,-570.0,9.888e-05,2]
[351713893,1738761069073,-500.0,9.888e-05,2]
[351713894,1738761069083,-1182.52,9.888e-05,2]
[351713895,1738761069093,-542.85,9.888e-05,2]
[351713896,1738761069103,-681.12,9.888e-05,2]
[351713897,1738761069117,-500.0,9.888e-05,2]
[351713898,1738761069126,-500.0,9.888e-05,2]
[351713899,1738761069135,-653.47,9.888e-05,2]
[351713900,1738761069146,-806.18,9.888e-05,2]
[351713901,1738761069157,-384.15,9.888e-05,2]
[351713902,1738761069167,-545.53,9.888e-05,2]
[351713903,1738761069177,-500.0,9.888e-05,2]
[351713904,1738761069187,-573.34,9.888e-05,2]
[351713905,1738761069197,-1589.07,9.888e-05,2]
[351713906,1738761069207,-500.0,9.888e-05,2]
[351713907,1738761069216,-896.93,9.888e-05,2]
[351713908,1738761069226,-534.61,9.888e-05,2]
[351713909,1738761069235,-506.01,9.888e-05,2]
[351713910,1738761069245,-500.0,9.888e-05,2]
[351713911,1738761069254,-500.0,9.888e-05,2]
[351713912,1738761069264,-500.0,9.888e-05,2]
[351713913,1738761069273,-500.0,9.888e-05,2]
[351713914,1738761069283,-605.11,9.888e-05,2]
[351713915,1738761069293,-982.7,9.888e-05,2]
[351713916,1738761069303,-500.0,9.888e-05,2]
[351713917,1738761069312,-500.0,9.888e-05,2]
[351713918,1738761069321,-500.0,9.888e-05,2]
[351713919,1738761069331,-500.0,9.888e-05,2]
[351713920,1738761069340,-747.43,9.888e-05,2]
[351713921,1738761069350,-500.0,9.888e-05,2]
[351713922,1738761069359,-500.0,9.888e-05,2]
[351713923,1738761069369,-500.0,9.888e-05,2]
[351713924,1738761069378,-500.0,9.888e-05,2]
[351713925,1738761069388,-500.0,9.888e-05,2]
[351713926,1738761069397,-500.0,9.888e-05,2]
[351713927,1738761069407,-500.0,9.888e-05,2]
[351713928,1738761069416,-500.0,9.888e-05,2]
[351713929,1738761069425,-500.0,9.888e-05,2]
[351713930,1738761069434,-500.0,9.889e-05,2]
[351713931,1738761069443,-500.0,9.889e-05,2]
[351713932,1738761069453,-500.0,9.889e-05,2]
[351713933,1738761069462,-500.0,9.889e-05,2]
[351713934,1738761069471,-500.0,9.889e-05,2]
[351713935,1738761069481,-500.0,9.889e-05,2]
[351713936,1738761069490,-500.0,9.889e-05,2]
[351713937,1738761069500,-500.0,9.889e-05,2]
[351713938,1738761069509,-500.0,9.889e-05,2]
[351713939,1738761069519,-620.62,9.889e-05,2]
[351713940,1738761069528,-500.0,9.889e-05,2]
[351713941,1738761069538,-500.0,9.889e-05,2]
[351713942,1738761069548,-500.0,9.889e-05,2]
[351713943,1738761069557,-500.0,9.889e-05,2]
[351713944,1738761069566,-500.0,9.889e-05,2]
[351713945,1738761069575,-500.0,9.889e-05,2]
[351713946,1738761069584,-412.44,9.889e-05,2]
[351713947,1738761069593,-500.0,9.889e-05,2]
[351713948,1738761069603,-500.0,9.889e-05,2]
[351713949,1738761069613,-500.0,9.889e-05,2]
[351713950,1738761069622,-500.0,9.889e-05,2]
[351713951,1738761069632,-500.0,9.889e-05,2]
[351713952,1738761069642,-500.0,9.889e-05,2]
[351713953,1738761069651,-500.0,9.889e-05,2]
[351713954,1738761069661,-500.0,9.889e-05,2]
[351713955,1738761069671,-500.0,9.889e-05,2]
[351713956,1738761069680,-500.0,9.889e-05,2]
[351713957,1738761069690,-500.0,9.889e-05,2]
[351713958,1738761069700,-500.0,9.889e-05,2]
[351713959,1738761069709,-506.4,9.889e-05,2]
[351713960,1738761069719,-582.08,9.889e-05,2]
[351713961,1738761069728,-614.06,9.889e-05,2]
[351713962,1738761069738,-500.0,9.889e-05,2]
[351713963,1738761069748,-500.0,9.889e-05,2]
[351713964,1738761069759,-500.0,9.889e-05,2]
[351713965,1738761069768,-500.0,9.889e-05,2]
[351713966,1738761069778,-377.93,9.889e-05,2]
[351713967,1738761069787,-500.0,9.889e-05,2]
[351713968,1738761069796,-181.54,9.889e-05,2]
[351713969,1738761069806,-534.39,9.889e-05,2]
[351713970,1738761069820,-611.12,9.889e-05,2]
[351713971,1738761069830,-516.03,9.889e-05,2]
[351713972,1738761069839,-3001.44,9.889e-05,2]
[351713973,1738761069849,-157.68,9.889e-05,2]
[351713974,1738761069861,-500.0,9.889e-05,2]
[351713975,1738761069875,-500.0,9.889e-05,2]
[351713976,1738761069885,-500.0,9.889e-05,2]
[351713977,1738761069897,-500.0,9.889e-05,2]
[351713978,1738761069907,-508.3,9.889e-05,2]
[351713979,1738761069917,-500.0,9.889e-05,2]
[351713980,1738761069926,-500.0,9.889e-05,2]
[351713981,1738761069935,-500.0,9.889e-05,2]
[351713982,1738761069945,-500.0,9.889e-05,2]
[351713983,1738761069955,-500.0,9.889e-05,2]
[351713984,1738761069966,-500.0,9.889e-05,2]
[351713985,1738761069977,-500.0,9.889e-05,2]
[351713986,1738761069991,-500.0,9.889e-05,2]
[351713987,1738761070001,-500.0,9.889e-05,2]
[351713988,1738761070011,-500.0,9.889e-05,2]
[351713989,1738761070020,-500.0,9.889e-05,2]
[351713990,1738761070030,-500.0,9.889e-05,2]
[351713991,1738761070040,-570.82,9.889e-05,2]
[351713992,1738761070049,-593.53,9.889e-05,2]
[351713993,1738761070059,-500.0,9.889e-05,2]
[351713994,1738761070069,-379.83,9.889e-05,2]
[351713995,1738761070079,-540.9,9.889e-05,2]
[351713996,1738761070088,-500.0,9.889e-05,2]
[351713997,1738761070098,-596.31,9.889e-05,2]
[351713998,1738761070107,-500.0,9.889e-05,2]
[351713999,1738761070117,-665.33,9.889e-05,2]
[351714000,1738761070128,-502.33,9.889e-05,2]
[351714001,1738761070137,-500.0,9.889e-05,2]
[351714002,1738761070147,-500.0,9.889e-05,2]
[351714003,1738761070157,-500.0,9.889e-05,2]
[351714004,1738761070167,-500.0,9.889e-05,2]
[351714005,1738761070176,-722.02,9.889e-05,2]
[351714006,1738761070186,-500.0,9.889e-05,2]
[351714007,1738761070195,-500.0,9.889e-05,2]
[351714008,1738761070205,-500.0,9.889e-05,2]
[351714009,1738761070214,-500.0,9.889e-05,2]
[351714010,1738761070224,-500.0,9.889e-05,2]
[351714011,1738761070234,-213.77,9.889e-05,2]
[351714012,1738761070243,-962.61,9.889e-05,2]
[351714013,1738761070252,-500.0,9.889e-05,2]
[351714014,1738761070262,-155.534578,9.889e-05,2]
[351714015,1738761070271,-500.0,9.89e-05,2]
[351714016,1738761070280,-229.78,9.89e-05,2]
[351714017,1738761070289,-500.0,9.89e-05,2]
[351714018,1738761070299,-500.0,9.89e-05,2]
[351714019,1738761070308,-500.0,9.89e-05,2]
[351714020,1738761070317,-500.0,9.89e-05,2]
[351714021,1738761070327,-500.0,9.89e-05,2]
[351714022,1738761070336,-500.0,9.89e-05,2]
[351714023,1738761070345,-500.0,9.89e-05,2]
[351714024,1738761070354,-500.0,9.89e-05,2]
[351714025,1738761070364,-500.0,9.89e-05,2]
[351714026,1738761070373,-500.0,9.89e-05,2]
[351714027,1738761070382,-500.0,9.89e-05,2]
[351714028,1738761070391,-500.0,9.89e-05,2]
[351714029,1738761070400,-500.0,9.89e-05,2]
[351714030,1738761070410,-500.0,9.89e-05,2]
[351714031,1738761070419,-500.0,9.89e-05,2]
[351714032,1738761070428,-500.0,9.89e-05,2]
[351714033,1738761070437,-402.5,9.89e-05,2]
[351714034,1738761070446,-575.76,9.89e-05,2]
[351714035,1738761070455,-500.0,9.89e-05,2]
[351714036,1738761070464,-500.0,9.89e-05,2]
[351714037,1738761070473,-500.0,9.89e-05,2]
[351714038,1738761070482,-500.0,9.89e-05,2]
[351714039,1738761070491,-539.1,9.89e-05,2]
[351714040,1738761070500,-500.0,9.89e-05,2]
[351714041,1738761070510,-500.0,9.89e-05,2]
[351714042,1738761070519,-450.94,9.89e-05,2]
[351714043,1738761070528,-500.0,9.89e-05,2]
[351714044,1738761070538,-500.0,9.89e-05,2]
[351714045,1738761070547,-500.0,9.89e-05,2]
[351714046,1738761070556,-500.0,9.89e-05,2]
[351714047,1738761070565,-315.4,9.89e-05,2]
[351714048,1738761070575,-500.0,9.89e-05,2]
[351714049,1738761070585,-500.0,9.89e-05,2]
[351714050,1738761070594,-537.56,9.89e-05,2]
[351714051,1738761070604,-1371.550187,9.89e-05,2]
[351714052,1738761070613,-1254.978718,9.89e-05,2]
[351714053,1738761070623,-500.0,9.89e-05,2]
[351714054,1738761070632,-500.0,9.89e-05,2]
[351714055,1738761070648,-500.0,9.89e-05,2]
[351714056,1738761070657,-500.0,9.89e-05,2]
[351714057,1738761070667,-500.0,9.89e-05,2]
[351714058,1738761070676,-500.0,9.89e-05,2]
[351714059,1738761070686,-792.83,9.89e-05,2]
[351714060,1738761070696,-754.14,9.89e-05,2]
[351714061,1738761070705,-522.52,9.89e-05,2]
[351714062,1738761070714,-798.67,9.89e-05,2]
[351714063,1738761070724,-1055.64,9.89e-05,2]
[351714064,1738761070734,-732.85,9.89e-05,2]
[351714065,1738761070743,-2320.89,9.89e-05,2]
[351714066,1738761070753,-687.64,9.89e-05,2]
[351714067,1738761070762,-1733.96,9.89e-05,2]
[351714068,1738761070772,-625.86,9.89e-05,2]
[351714069,1738761070781,-514.8,9.89e-05,2]
[351714070,1738761070791,-500.0,9.89e-05,2]
[351714071,1738761070800,-1454.98,9.89e-05,2]
[351714072,1738761070810,-500.0,9.89e-05,2]
[351714073,1738761070819,-673.66,9.89e-05,2]
[351714074,1738761070828,-500.0,9.89e-05,2]
[351714075,1738761070837,-542.44,9.89e-05,2]
[351714076,1738761070847,-500.0,9.89e-05,2]
[351714077,1738761070856,-500.0,9.89e-05,2]
[351714078,1738761070866,-1149.1,9.89e-05,2]
[351714079,1738761070875,-500.0,9.89e-05,2]
[351714080,1738761070885,-500.0,9.89e-05,2]
[351714081,1738761070901,-500.0,9.89e-05,2]
[351714082,1738761070912,-500.0,9.89e-05,2]
[351714083,1738761070923,-868.42,9.89e-05,2]
[351714084,1738761070932,-1134.0,9.891e-05,2]
[351714085,1738761070942,-599.75,9.891e-05,2]
[351714086,1738761070951,-500.0,9.891e-05,2]
[351714087,1738761070960,-621.99,9.891e-05,2]
[351714088,1738761070969,-570.11,9.891e-05,2]
[351714089,1738761070980,-500.0,9.891e-05,2]
[351714090,1738761070993,-500.0,9.891e-05,2]
[351714091,1738761071003,-500.0,9.891e-05,2]
[351714092,1738761071012,-614.09,9.891e-05,2]
[351714093,1738761071023,-500.0,9.891e-05,2]
[351714094,1738761071032,-500.0,9.891e-05,2]
[351714095,1738761071041,-526.24,9.891e-05,2]
[351714096,1738761071051,-500.0,9.891e-05,2]
[351714097,1738761071061,-1828.05,9.892e-05,2]
[351714098,1738761071072,-65418.0,9.9e-05,2]
[351714099,1738761071082,-19168.91120439,9.932e-05,2]
[351714100,1738761071092,-200.0,9.932e-05,2]
[351714101,1738761071101,-1008.89910177,9.933e-05,2]
[351714102,1738761071111,-2477.31124921,9.937e-05,2]
[351714103,1738761071120,-745.50591938,9.94e-05,2]
[351714104,1738761071130,-892.23604153,9.942e-05,2]
[351714105,1738761071141,-19168.91120439,9.943e-05,2]
[351714106,1738761071151,-892.23604153,9.943e-05,2]
[351714107,1738761071161,-745.50591938,9.943e-05,2]
[351714108,1738761071170,-339.6,9.945e-05,2]
[351714109,1738761071179,-2477.31124921,9.945e-05,2]
[351714110,1738761071189,-307.90921936,9.95e-05,2]
[351714111,1738761071328,-892.23604153,9.954e-05,2]
[351714112,1738761071338,-19168.91120439,9.955e-05,2]
[351714113,1738761071347,-1008.89910177,9.958e-05,2]
[351714114,1738761071356,-892.23604153,9.96e-05,2]
[351714115,1738761071365,-2477.31124921,9.96e-05,2]
[351714116,1738761071375,-8643.41286231,9.96e-05,2]
[351714117,1738761071385,-8643.41286231,9.962e-05,2]
[351714118,1738761071397,-8643.41286231,9.962e-05,2]
[351714119,1738761071407,-745.50591938,9.963e-05,2]
[351714120,1738761071417,-19168.91120439,9.969e-05,2]
[351714121,1738761071426,-510.85208158,9.973e-05,2]
[351714122,1738761071436,-501.19637514,9.973e-05,2]
[351714123,1738761071445,-500.0,9.973e-05,2]
[351714124,1738761071454,-151.22749095,9.973e-05,2]
[351714125,1738761071463,-160.78592655,9.973e-05,2]
[351714126,1738761071473,-153.6659481,9.973e-05,2]
[351714127,1738761071483,-151.89291167,9.973e-05,2]
[351714128,1738761071492,-1008.89910177,9.973e-05,2]
[351714129,1738761071501,-2477.31124921,9.973e-05,2]
[351714130,1738761071510,-8643.41286231,9.974e-05,2]
[351714131,1738761071519,-152.0,9.979e-05,3]
[351714132,1738761071529,-1008.89910177,9.982e-05,2]
[351714133,1738761071538,-200.0,9.991e-05,2]
[351714134,1738761071547,-745.50591938,9.993e-05,2]
[351714135,1738761071556,-500.0,9.999e-05,2]
[351714136,1738761071565,-226162.68966933,0.0001,2]
[351714137,1738761071591,-622.64,9.478e-05,2]
[351714138,1738761071600,-8323.75205495,0.0001,2]
[351714177,1738762231746,-1010.92607264,8.219e-05,2]
[351714178,1738762231808,-397.13392736,8.219e-05,2]
[351714179,1738762231819,-203.76,8.517e-05,2]
[351714180,1738762231828,-73.64690721,8.552e-05,2]
[351714201,1738762237502,-926.35309279,8.552e-05,2]
[351714202,1738762237511,-250.0,8.686e-05,2]
[351714203,1738762237521,-248.93,8.686e-05,2]
[351714204,1738762237530,-24.30040356,8.687e-05,2]
[351714205,1738762237542,-150.76147579,8.687e-05,2]
[351714206,1738762237551,-780.06920267,8.721e-05,2]
[351714208,1738762237560,-165.77,8.773e-05,2]
[351714209,1738762237569,-269.22,8.803e-05,2]
[351714210,1738762237578,-382.0695,8.973e-05,2]
[351714211,1738762237587,-302.35633542,8.973e-05,2]
[351714212,1738762237653,-658.47843359,8.973e-05,2]
[351714213,1738762237665,-363.48001445,8.973e-05,2]
[351714214,1738762237676,-3675.68521654,8.973e-05,2]
[351714215,1738762237685,-438.59,9.178e-05,2]
[351714216,1738762237694,-438.59,9.178e-05,2]
[351714217,1738762237703,-438.59,9.178e-05,2]
[351714218,1738762237712,-438.59,9.178e-05,2]
[351714219,1738762237721,-438.59,9.178e-05,2]
[351714220,1738762237730,-438.59,9.178e-05,2]
[351714221,1738762237740,-150.0,9.203e-05,2]
[351714222,1738762237749,-500.0,9.204e-05,2]
[351714223,1738762237758,-500.0,9.204e-05,2]
[351714224,1738762237767,-500.0,9.204e-05,2]
[351714225,1738762237776,-500.0,9.204e-05,2]
[351714226,1738762237785,-500.0,9.204e-05,2]
[351714227,1738762237794,-500.0,9.204e-05,2]
[351714228,1738762237804,-500.0,9.204e-05,2]
[351714229,1738762237813,-500.0,9.204e-05,2]
[351714230,1738762237822,-500.0,9.204e-05,2]
[351714231,1738762237831,-500.0,9.204e-05,2]
[351714232,1738762237840,-500.0,9.204e-05,2]
[351714234,1738762237849,-500.0,9.204e-05,2]
[351714236,1738762237858,-500.0,9.204e-05,2]
[351714238,1738762237868,-500.0,9.204e-05,2]
[351714240,1738762237877,-500.0,9.204e-05,2]
[351714242,1738762237887,-500.0,9.204e-05,2]
[351714244,1738762237896,-500.0,9.204e-05,2]
[351714246,1738762237905,-500.0,9.204e-05,2]
[351714248,1738762237914,-500.0,9.204e-05,2]
[351714250,1738762237923,-500.0,9.204e-05,2]
[351714252,1738762237932,-500.0,9.204e-05,2]
[351714254,1738762237942,-500.0,9.204e-05,2]
[351714256,1738762237951,-500.0,9.204e-05,2]
[351714258,1738762237960,-500.0,9.204e-05,2]
[351714260,1738762237969,-500.0,9.204e-05,2]
[351714262,1738762237978,-520.33117878,9.204e-05,2]
[351714264,1738762237988,-500.0,9.204e-05,2]
[351714266,1738762237997,-500.0,9.204e-05,2]
[351714268,1738762238006,-500.0,9.204e-05,2]
[351714270,1738762238016,-500.0,9.204e-05,2]
[351714272,1738762238025,-500.0,9.204e-05,2]
[351714274,1738762238034,-500.0,9.204e-05,2]
[351714276,1738762238043,-500.0,9.204e-05,2]
[351714278,1738762238052,-500.0,9.204e-05,2]
[351714280,1738762238062,-500.0,9.204e-05,2]
[351714282,1738762238070,-500.0,9.204e-05,2]
[351714284,1738762238079,-500.0,9.204e-05,2]
[351714286,1738762238089,-500.0,9.204e-05,2]
[351714288,1738762238099,-500.0,9.204e-05,2]
[351714290,1738762238108,-500.0,9.204e-05,2]
[351714292,1738762238117,-500.0,9.204e-05,2]
[351714294,1738762238126,-500.0,9.204e-05,2]
[351714296,1738762238137,-500.0,9.204e-05,2]
[351714298,1738762238146,-500.0,9.204e-05,2]
[351714300,1738762238155,-500.0,9.204e-05,2]
[351714302,1738762238163,-500.0,9.204e-05,2]
[351714304,1738762238173,-500.0,9.204e-05,2]
[351714306,1738762238182,-500.0,9.204e-05,2]
[351714308,1738762238190,-500.0,9.204e-05,2]
[351714310,1738762238202,-500.0,9.204e-05,2]
[351714312,1738762238213,-500.0,9.204e-05,2]
[351714314,1738762238222,-500.0,9.204e-05,2]
[351714316,1738762238231,-500.0,9.204e-05,2]
[351714318,1738762238241,-511.71,9.204e-05,2]
[351714320,1738762238250,-500.0,9.204e-05,2]
[351714322,1738762238259,-500.0,9.204e-05,2]
[351714324,1738762238268,-500.0,9.204e-05,2]
[351714326,1738762238278,-553.27,9.204e-05,2]
[351714328,1738762238287,-500.0,9.204e-05,2]
[351714330,1738762238295,-500.0,9.204e-05,2]
[351714332,1738762238305,-500.0,9.204e-05,2]
[351714334,1738762238314,-500.0,9.204e-05,2]
[351714336,1738762238323,-500.0,9.204e-05,2]
[351714338,1738762238332,-500.0,9.204e-05,2]
[351714340,1738762238345,-500.0,9.204e-05,2]
[351714342,1738762238354,-500.0,9.204e-05,2]
[351714343,1738762238363,-552.982771,9.204e-05,2]
[351714346,1738762238373,-500.0,9.204e-05,2]
[351714348,1738762238383,-500.0,9.204e-05,2]
[351714350,1738762238393,-500.0,9.204e-05,2]
[351714352,1738762238402,-500.0,9.204e-05,2]
[351714353,1738762238411,-500.0,9.204e-05,2]
[351714355,1738762238421,-500.0,9.204e-05,2]
[351714358,1738762238432,-500.0,9.204e-05,2]
[351714360,1738762238441,-500.0,9.204e-05,2]
[351714361,1738762238451,-500.0,9.204e-05,2]
[351714363,1738762238460,-500.0,9.204e-05,2]
[351714366,1738762238470,-500.0,9.204e-05,2]
[351714367,1738762238480,-500.0,9.204e-05,2]
[351714369,1738762238489,-500.0,9.204e-05,2]
[351714372,1738762238499,-500.0,9.204e-05,2]
[351714374,1738762238508,-500.0,9.204e-05,2]
[351714376,1738762238518,-500.0,9.204e-05,2]
[351714378,1738762238527,-500.0,9.204e-05,2]
[351714380,1738762238536,-500.0,9.204e-05,2]
[351714382,1738762238544,-500.0,9.204e-05,2]
[351714384,1738762238554,-500.0,9.204e-05,2]
[351714386,1738762238563,-500.0,9.204e-05,2]
[351714388,1738762238572,-500.0,9.204e-05,2]
[351714390,1738762238581,-500.0,9.204e-05,2]
[351714392,1738762238590,-649.58,9.204e-05,2]
[351714394,1738762238599,-522.69,9.204e-05,2]
[351714396,1738762238608,-500.0,9.204e-05,2]
[351714398,1738762238618,-500.0,9.204e-05,2]
[351714400,1738762238627,-36.40414634,9.204e-05,2]
[351714521,1738762239775,-463.59585366,9.204e-05,2]
[351714522,1738762239784,-26.39414634,9.204e-05,2]
[351714523,1738762239795,-148.667733,9.204e-05,2]
[351714524,1738762239805,-500.0,9.204e-05,2]
[351714525,1738762239814,-50.610767,9.204e-05,2]
[351714540,1738762239951,-528.849233,9.204e-05,2]
[351714542,1738762239961,-492.245767,9.204e-05,2]
[351714545,1738762239972,-7.754233,9.204e-05,2]
[351714547,1738762239981,-438.59,9.21e-05,2]
[351714549,1738762239991,-36.87372557,9.21e-05,2]
[351714551,1738762240003,-113.12627443,9.21e-05,2]
[351714553,1738762240013,-586.12969816,9.333e-05,2]
[351714829,1738762242605,-1655.80350453,9.333e-05,2]
[351714832,1738762242615,-500.0,9.339e-05,2]
[351714835,1738762242625,-500.0,9.339e-05,2]
[351714837,1738762242636,-500.0,9.339e-05,2]
[351714839,1738762242646,-265.51670111,9.339e-05,2]
[351714842,1738762242656,-500.0,9.339e-05,2]
[351714843,1738762242665,-500.0,9.339e-05,2]
[351714846,1738762242674,-531.77911736,9.339e-05,2]
[351714847,1738762242683,-500.0,9.339e-05,2]
[351714849,1738762242693,-500.0,9.339e-05,2]
[351714852,1738762242703,-500.0,9.339e-05,2]
[351714853,1738762242712,-500.0,9.339e-05,2]
[351714855,1738762242721,-519.09167978,9.339e-05,2]
[351714857,1738762242731,-291.81070532,9.339e-05,2]
[351714860,1738762242743,-208.18929468,9.339e-05,2]
[351714861,1738762242753,-500.0,9.339e-05,2]
[351714863,1738762242762,-502.25422859,9.339e-05,2]
[351714866,1738762242771,-409.9145794,9.339e-05,2]
[351714870,1738762242805,-90.0854206,9.339e-05,2]
[351714872,1738762242815,-500.0,9.339e-05,2]
[351714874,1738762242824,-533.93,9.339e-05,2]
[351714876,1738762242834,-500.0,9.339e-05,2]
[351714878,1738762242843,-500.0,9.339e-05,2]
[351714880,1738762242852,-500.0,9.339e-05,2]
[351714882,1738762242861,-394.39423633,9.339e-05,2]
[351714884,1738762242871,-500.0,9.339e-05,2]
[351714886,1738762242880,-500.0,9.339e-05,2]
[351714888,1738762242891,-500.0,9.339e-05,2]
[351714890,1738762242900,-500.0,9.339e-05,2]
[351714892,1738762242909,-500.0,9.339e-05,2]
[351714894,1738762242918,-500.0,9.339e-05,2]
[351714896,1738762242927,-500.0,9.339e-05,2]
[351714898,1738762242937,-500.0,9.339e-05,2]
[351714900,1738762242947,-500.0,9.339e-05,2]
[351714902,1738762242955,-500.0,9.339e-05,2]
[351714904,1738762242965,-500.0,9.339e-05,2]
[351714906,1738762242974,-500.0,9.339e-05,2]
[351714908,1738762242983,-500.0,9.339e-05,2]
[351714910,1738762242993,-500.0,9.339e-05,2]
[351714912,1738762243002,-500.0,9.339e-05,2]
[351714914,1738762243011,-586.59,9.339e-05,2]
[351714916,1738762243021,-500.0,9.339e-05,2]
[351714918,1738762243030,-500.0,9.339e-05,2]
[351714919,1738762243039,-500.0,9.339e-05,2]
[351714920,1738762243048,-500.0,9.339e-05,2]
[351714921,1738762243058,-500.0,9.339e-05,2]
[351714922,1738762243067,-500.0,9.339e-05,2]
[351714923,1738762243077,-500.0,9.339e-05,2]
[351714924,1738762243086,-155.534578,9.339e-05,2]
[351714925,1738762243096,-594.93,9.339e-05,2]